fUST/lending_fUST_20240903
["ID","MTS","AMOUNT","RATE_DAILY","PERIOD"]
[337033650,1725348643522,-304.68720247,0.00030486,2]
[337033729,1725348851316,-161.07763022,0.00026243,2]
[337033730,1725348851340,-223.9866475,0.00028115,2]
[337033731,1725348851365,-158.58904711,0.0002834,5]
[337033732,1725348851387,-167.18037718,0.0002834,2]
[337033733,1725348851410,-501.50622709,0.0002834,5]
[337033734,1725348851434,-160.63339771,0.0002834,5]
[337033735,1725348851459,-1209.58109184,0.00030273,22]
[337033736,1725348851486,-400.0,0.00030485,2]
[337033737,1725348851509,-425.0,0.00030485,2]
[337033738,1725348851533,-5518.00296151,0.00030486,2]
[337033739,1725348851555,-186.18105145,0.0003065,2]
[337033740,1725348851580,-150.93205067,0.00031369,2]
[337033741,1725348851687,-5195.10171019,0.00031379,2]
[337033742,1725348851711,-5195.10171019,0.00031609,2]
[337033743,1725348851736,-2861.44660809,0.000319,2]
[337033744,1725348851761,-300.67065157,0.00032,60]
[337033745,1725348851784,-500.0,0.00032,7]
[337033746,1725348851806,-1000.0,0.00032,7]
[337033747,1725348851828,-1000.0,0.00032,7]
[337033748,1725348851851,-1000.0,0.00032,7]
[337033749,1725348851875,-1000.0,0.00032,7]
[337033750,1725348851899,-346.00883768,0.00032,7]
[337033754,1725349504389,2382.70035299,0.00015,2]
[337033756,1725349767278,290.42042015,0.0002,2]
[337033789,1725349832609,-815.18169236,0.00024988,2]
[337033790,1725349832619,-218.3961102,0.00024989,2]
[337033791,1725349832628,-356.093938,0.00026004,2]
[337033792,1725349832638,-465.00144919,0.00027216,2]
[337033793,1725349832647,-1954.7994104,0.00027709,2]
[337033794,1725349832656,-64.9066986,0.00027737,2]
[337033903,1725349843273,-235.0933014,0.00027737,2]
[337033904,1725349843283,-24900.0,0.00027738,2]
[337033905,1725349843293,-193.61828,0.00028438,2]
[337033906,1725349843302,-465.00007246,0.00028577,2]
[337033907,1725349843312,-253.97784888,0.00028817,2]
[337033908,1725349843322,-167.977106,0.0003,2]
[337033909,1725349843332,-465.00000362,0.00030006,2]
[337033910,1725349843342,-420.0,0.0003051,2]
[337033911,1725349843352,-465.00000018,0.00031506,2]
[337033912,1725349843362,-1000.0,0.00032,7]
[337033913,1725349843372,-1000.0,0.00032,7]
[337033914,1725349843382,-1000.0,0.00032,7]
[337033915,1725349843392,-1000.0,0.00032,7]
[337033916,1725349843404,-1000.0,0.00032,7]
[337033917,1725349843414,-1000.0,0.00032,7]
[337033918,1725349843423,-1000.0,0.00032,7]
[337033919,1725349843434,-1000.0,0.00032,7]
[337033920,1725349843443,-1000.0,0.00032,7]
[337033921,1725349843454,-1000.0,0.00032,7]
[337033922,1725349843463,-818.0,0.00032,7]
[337033923,1725349843473,-1000.0,0.00032,7]
[337033924,1725349843483,-830.58018696,0.00032,7]
[337033925,1725349843495,-169.41981304,0.00032,7]
[337033926,1725349843505,-330.58018696,0.00032,7]
[337033980,1725350802054,-178.046969,0.00028663,2]
[337033981,1725350802077,-500.0,0.00028697,2]
[337033982,1725350802100,-193.618281,0.00028843,2]
[337033983,1725350802121,-394.78753882,0.00029065,2]
[337034007,1725350972646,-300.0,0.00024989,2]
[337034008,1725350972679,-649.72,0.0002499,3]
[337034009,1725350972708,-12370.86,0.0002499,3]
[337034010,1725350972721,-300.0,0.0002499,3]
[337034011,1725350972734,-649.72,0.0002499,3]
[337034012,1725350972747,-131.12,0.0002499,3]
[337034013,1725350972758,-13320.58,0.0002499,3]
[337034032,1725351032597,-868.49,0.000249,2]
[337034080,1725351038451,-1635.27578214,0.000249,2]
[337034082,1725351038460,-19596.35,0.0002499,3]
[337034084,1725351038470,-16330.29,0.0002499,3]
[337034086,1725351038479,-13608.58,0.0002499,3]
[337034087,1725351038489,-11340.48,0.0002499,3]
[337034089,1725351038498,-300.0,0.00024999,2]
[337034091,1725351038510,-500.0,0.00024999,2]
[337034093,1725351038520,-500.0,0.00024999,2]
[337034094,1725351038529,-500.0,0.00024999,2]
[337034095,1725351038538,-500.0,0.00024999,2]
[337034097,1725351038548,-500.0,0.00024999,2]
[337034099,1725351038557,-500.0,0.00024999,2]
[337034101,1725351038566,-500.0,0.00024999,2]
[337034103,1725351038576,-250.0,0.00024999,2]
[337034105,1725351038585,-191810.21143424,0.00025,15]
[337034110,1725351038622,-16679.41503,0.00025,15]
[337034199,1725351043418,-500.0,0.00024999,2]
[337034201,1725351043430,-500.0,0.00024999,2]
[337034203,1725351043441,-500.0,0.00024999,2]
[337034204,1725351043451,-513.3,0.00024999,2]
[337034205,1725351043461,-13065.8534981,0.00025,15]
[337034209,1725351043526,-140.71697654,0.00025,15]
[337034226,1725352121281,12967.01030564,0.0002,2]
[337034231,1725352154199,-1427.67847993,0.00020377,2]
[337034232,1725352154222,-300.0,0.00023823,2]
[337034233,1725352154243,-858.56794519,0.00023824,2]
[337034308,1725352238759,-300.0,0.00023823,2]
[337034311,1725352238770,-152.80666933,0.00023824,2]
[337034380,1725352243641,-14579.1534981,0.00023824,2]
[337034441,1725352968349,25000.0,0.00023,40]
[337034443,1725353131246,6180.69,0.000201,2]
[337034445,1725353192118,165.44969507,0.0002,2]
[337034446,1725353260405,503.43896267,0.000201,2]
[337034447,1725353283603,41200.0,0.0002,2]
[337034490,1725353433226,-328.95409509,0.00020302,2]
[337034508,1725353438883,-566.21231323,0.00020302,2]
[337034509,1725353438893,-486.50832042,0.00021317,2]
[337034510,1725353438903,-157.3918253,0.0002159,2]
[337034511,1725353438913,-302.33493271,0.00022,2]
[337034512,1725353438923,-300.0,0.00022036,2]
[337034513,1725353438933,-300.0,0.00022036,2]
[337034514,1725353438942,-24900.0,0.00022037,2]
[337034515,1725353438952,-466.07541602,0.00022383,2]
[337034516,1725353438961,-178.0469706,0.00022475,2]
[337034517,1725353438972,-251.0,0.00022686,2]
[337034518,1725353438981,-302.30477158,0.00022885,2]
[337034519,1725353438991,-453.4119518,0.00023114,4]
[337034520,1725353439000,-192.36289865,0.00023724,2]
[337034521,1725353439011,-420.0,0.00023945,2]
[337034522,1725353439019,-420.0,0.0002424,2]
[337034523,1725353439029,-6993.28720437,0.00024668,2]
[337034524,1725353439038,-6993.28720437,0.00024716,2]
[337034525,1725353439047,-6993.28720437,0.00024763,2]
[337034526,1725353439057,-6993.28720437,0.00024811,2]
[337034527,1725353439066,-6993.28720437,0.00024858,2]
[337034528,1725353439076,-151.72735,0.00024862,7]
[337034529,1725353439085,-151.72735,0.00024862,7]
[337034530,1725353439096,-153.273083,0.00024862,7]
[337034531,1725353439106,-151.72735,0.0002487,7]
[337034532,1725353439115,-151.72735,0.0002487,7]
[337034533,1725353439125,-1941.11101357,0.00024898,2]
[337034534,1725353439134,-150.112233,0.000249,3]
[337034535,1725353439144,-150.112233,0.000249,4]
[337034536,1725353439154,-150.112233,0.000249,2]
[337034537,1725353439164,-150.112233,0.000249,4]
[337034538,1725353439175,-150.112233,0.000249,5]
[337034539,1725353439184,-236.417283,0.000249,3]
[337034541,1725353439194,-21617.04,0.00024915,3]
[337034543,1725353439203,-15011.83,0.00024915,3]
[337034546,1725353439212,-18014.2,0.00024925,3]
[337034547,1725353439222,-500.0,0.00024934,2]
[337034549,1725353439231,-500.0,0.00024934,2]
[337034551,1725353439240,-500.0,0.00024934,2]
[337034554,1725353439249,-500.0,0.00024934,2]
[337034555,1725353439259,-500.0,0.00024934,2]
[337034558,1725353439269,-500.0,0.00024934,2]
[337034560,1725353439279,-500.0,0.00024934,2]
[337034569,1725353439371,-500.0,0.00024934,2]
[337034570,1725353439383,-500.0,0.00024934,2]
[337034571,1725353439393,-500.0,0.00024934,2]
[337034572,1725353439402,-500.0,0.00024934,2]
[337034573,1725353439411,-500.0,0.00024934,2]
[337034574,1725353439423,-500.0,0.00024934,2]
[337034575,1725353439432,-500.0,0.00024934,2]
[337034576,1725353439441,-500.0,0.00024934,2]
[337034577,1725353439451,-500.0,0.00024934,2]
[337034578,1725353439463,-500.0,0.00024934,2]
[337034579,1725353439472,-500.0,0.00024934,2]
[337034580,1725353439482,-500.0,0.00024934,2]
[337034581,1725353439491,-500.0,0.00024934,2]
[337034582,1725353439500,-500.0,0.00024934,2]
[337034583,1725353439510,-500.0,0.00024934,2]
[337034585,1725353439519,-500.0,0.00024934,2]
[337034587,1725353439529,-480.90750165,0.00024934,2]
[337034589,1725353439538,-500.0,0.00024934,2]
[337034590,1725353439548,-500.0,0.00024934,2]
[337034591,1725353439558,-500.0,0.00024934,2]
[337034592,1725353439568,-500.0,0.00024934,2]
[337034593,1725353439578,-163.42854029,0.00024935,2]
[337034594,1725353439587,-393.97770634,0.00024935,2]
[337034595,1725353439597,-500.0,0.00024935,2]
[337034596,1725353439606,-500.0,0.00024935,2]
[337034597,1725353439615,-200.0,0.00024935,2]
[337034598,1725353439625,-500.0,0.00024935,2]
[337034599,1725353439634,-500.0,0.00024935,2]
[337034600,1725353439644,-500.0,0.00024935,2]
[337034601,1725353439654,-386.91386425,0.00024935,2]
[337034602,1725353439663,-500.0,0.00024935,2]
[337034603,1725353439675,-500.0,0.00024935,2]
[337034604,1725353439684,-500.0,0.00024935,2]
[337034605,1725353439693,-500.0,0.00024935,2]
[337034606,1725353439702,-500.0,0.00024935,2]
[337034607,1725353439711,-500.0,0.00024935,2]
[337034608,1725353439720,-303871.24782249,0.00024936,3]
[337034675,1725353444188,-12509.86,0.00024924,3]
[337034676,1725353444199,-500.0,0.00024934,2]
[337034677,1725353444208,-500.0,0.00024934,2]
[337034678,1725353444218,-500.0,0.00024934,2]
[337034679,1725353444228,-500.0,0.00024934,2]
[337034680,1725353444238,-500.0,0.00024934,2]
[337034681,1725353444247,-531.00809943,0.00024934,2]
[337034683,1725353444257,-500.0,0.00024934,2]
[337034685,1725353444266,-500.0,0.00024934,2]
[337034686,1725353444275,-577.77421488,0.00024934,2]
[337034687,1725353444284,-500.0,0.00024934,2]
[337034688,1725353444294,-500.0,0.00024934,2]
[337034689,1725353444303,-500.0,0.00024934,2]
[337034690,1725353444313,-500.0,0.00024934,2]
[337034691,1725353444323,-500.0,0.00024934,2]
[337034692,1725353444332,-500.0,0.00024934,2]
[337034693,1725353444342,-500.0,0.00024934,2]
[337034694,1725353444351,-500.0,0.00024934,2]
[337034695,1725353444361,-500.0,0.00024934,2]
[337034696,1725353444370,-500.0,0.00024934,2]
[337034697,1725353444381,-500.0,0.00024934,2]
[337034698,1725353444391,-500.0,0.00024934,2]
[337034699,1725353444400,-500.0,0.00024934,2]
[337034700,1725353444409,-500.0,0.00024934,2]
[337034701,1725353444527,-500.0,0.00024934,2]
[337034702,1725353444538,-500.0,0.00024934,2]
[337034703,1725353444547,-500.0,0.00024934,2]
[337034704,1725353444557,-500.0,0.00024934,2]
[337034705,1725353444566,-500.0,0.00024934,2]
[337034706,1725353444575,-500.0,0.00024934,2]
[337034707,1725353444585,-500.0,0.00024934,2]
[337034708,1725353444593,-500.0,0.00024934,2]
[337034709,1725353444602,-500.0,0.00024934,2]
[337034710,1725353444612,-500.0,0.00024934,2]
[337034711,1725353444622,-500.0,0.00024934,2]
[337034712,1725353444631,-500.0,0.00024934,2]
[337034713,1725353444640,-500.0,0.00024934,2]
[337034714,1725353444649,-500.0,0.00024934,2]
[337034715,1725353444659,-247.57656706,0.00024934,2]
[337034716,1725353444669,-500.0,0.00024934,2]
[337034717,1725353444689,-500.0,0.00024934,2]
[337034718,1725353444699,-500.0,0.00024934,2]
[337034719,1725353444708,-500.0,0.00024934,2]
[337034720,1725353444717,-500.0,0.00024934,2]
[337034721,1725353444726,-500.0,0.00024934,2]
[337034722,1725353444735,-500.0,0.00024934,2]
[337034723,1725353444744,-234.86174653,0.00024934,2]
[337034724,1725353444783,-52.78250651,0.00024934,2]
[337034741,1725353446706,-212.35574696,0.00024934,2]
[337034742,1725353446716,-427.10425304,0.00024934,2]
[337034748,1725353997690,2146.08301726,0.0001,2]
[337034750,1725354201244,1237.52701486,0.0002,7]
[337034758,1725354556169,-300.0,0.00023639,2]
[337034759,1725354556192,-300.0,0.00023639,2]
[337034760,1725354556214,-5812.61614225,0.0002364,2]
[337034936,1725354643054,-300.0,0.00023639,2]
[337034938,1725354643064,-252.0,0.00023639,2]
[337034939,1725354643075,-19087.38385775,0.0002364,2]
[337034941,1725354643084,-2900.0,0.0002371,2]
[337034943,1725354643095,-2803.982619,0.00024869,2]
[337034945,1725354643106,-1746.99991224,0.00024898,2]
[337034947,1725354643117,-8010.71423891,0.00024969,3]
[337034968,1725354761009,-181.436232,0.00024154,2]
[337034969,1725354761033,-181.436232,0.00024574,2]
[337034970,1725354761068,-2453.48479159,0.00024878,2]
[337034971,1725354761091,-300.0,0.00024933,2]
[337034972,1725354761113,-307.92597786,0.00024934,2]
[337034973,1725354761134,-9889.57133551,0.00024934,2]
[337034974,1725354761156,-7239.5,0.00024969,3]
[337034975,1725354761177,-3606.64543104,0.00024969,3]
[337034977,1725355042118,-178.046969,0.00023214,2]
[337034978,1725355042140,-180.726279,0.000236,2]
[337034979,1725355042165,-300.0,0.00023796,2]
[337034980,1725355042188,-23116.836752,0.00023797,2]
[337034987,1725355700579,4644.52016143,0.0002,2]
[337034988,1725355722214,20809.20015278,0.0002,2]
[337034989,1725355722770,8234.00030059,0.0001999,2]
[337035076,1725355838465,-6.56730807,0.00020376,2]
[337035129,1725355840345,-293.43269193,0.00020376,2]
[337035131,1725355840355,-252.0,0.00020376,2]
[337035133,1725355840365,-89249.06516977,0.00020377,2]
[337035135,1725355840375,-505.13174373,0.000212,2]
[337035137,1725355840385,-420.0,0.00022414,2]
[337035139,1725355840394,-24900.0,0.00023479,2]
[337035141,1725355840403,-250.0,0.00023584,2]
[337035143,1725355840413,-181.436232,0.00023655,2]
[337035145,1725355840422,-500.0,0.00024471,2]
[337035147,1725355840433,-500.0,0.00024471,2]
[337035149,1725355840443,-500.0,0.00024471,2]
[337035151,1725355840452,-531.00809943,0.00024471,2]
[337035153,1725355840462,-500.0,0.00024471,2]
[337035155,1725355840471,-500.0,0.00024471,2]
[337035157,1725355840484,-500.0,0.00024471,2]
[337035159,1725355840493,-500.0,0.00024471,2]
[337035161,1725355840503,-500.0,0.00024471,2]
[337035163,1725355840513,-500.0,0.00024471,2]
[337035165,1725355840523,-500.0,0.00024471,2]
[337035167,1725355840532,-500.0,0.00024471,2]
[337035169,1725355840542,-500.0,0.00024471,2]
[337035171,1725355840551,-500.0,0.00024471,2]
[337035173,1725355840561,-500.0,0.00024471,2]
[337035175,1725355840571,-508.95213894,0.00024471,2]
[337035177,1725355840580,-500.0,0.00024471,2]
[337035179,1725355840590,-500.0,0.00024471,2]
[337035181,1725355840600,-500.0,0.00024471,2]
[337035184,1725355840610,-500.0,0.00024471,2]
[337035186,1725355840620,-500.0,0.00024471,2]
[337035187,1725355840630,-500.0,0.00024471,2]
[337035188,1725355840639,-500.0,0.00024471,2]
[337035189,1725355840648,-500.0,0.00024471,2]
[337035190,1725355840659,-500.0,0.00024471,2]
[337035191,1725355840668,-500.0,0.00024471,2]
[337035192,1725355840678,-500.0,0.00024471,2]
[337035193,1725355840687,-22375.42528417,0.00024472,2]
[337035194,1725355840697,-5195.10171019,0.00024478,2]
[337035195,1725355840707,-150.93205067,0.00024654,2]
[337035196,1725355840717,-587.0,0.00024655,2]
[337035197,1725355840729,-500.0,0.00024658,2]
[337035198,1725355840740,-500.0,0.00024658,2]
[337035199,1725355840750,-500.0,0.00024658,2]
[337035200,1725355840760,-500.0,0.00024658,2]
[337035201,1725355840769,-500.0,0.00024658,2]
[337035202,1725355840779,-500.0,0.00024658,2]
[337035203,1725355840788,-500.0,0.00024658,2]
[337035204,1725355840798,-500.0,0.00024658,2]
[337035205,1725355840807,-500.0,0.00024658,2]
[337035206,1725355840818,-500.0,0.00024658,2]
[337035207,1725355840828,-500.0,0.00024658,2]
[337035208,1725355840838,-500.0,0.00024658,2]
[337035209,1725355840851,-500.0,0.00024658,2]
[337035210,1725355840860,-500.0,0.00024658,2]
[337035211,1725355840869,-513.69692243,0.00024658,2]
[337035212,1725355840879,-500.0,0.00024658,2]
[337035213,1725355840889,-500.0,0.00024658,2]
[337035214,1725355840898,-577.77421488,0.00024658,2]
[337035215,1725355840908,-500.0,0.00024658,2]
[337035216,1725355840918,-500.0,0.00024658,2]
[337035217,1725355840928,-5195.10171019,0.00024834,2]
[337035218,1725355840938,-181.436232,0.00024888,2]
[337035219,1725355840947,-1746.99991224,0.0002489,2]
[337035220,1725355840957,-153.96298893,0.00024934,2]
[337035221,1725355841059,-4944.78566776,0.00024934,2]
[337035222,1725355841069,-501.50622709,0.00024973,2]
[337035223,1725355841078,-160.63339771,0.00024973,2]
[337035224,1725355841088,-151.0,0.00024978,7]
[337035225,1725355841097,-278.166398,0.00024978,7]
[337035226,1725355841107,-151.0,0.00024978,7]
[337035227,1725355841117,-275.78439444,0.00024978,2]
[337035228,1725355841128,-500.0,0.00024978,2]
[337035229,1725355841137,-500.0,0.00024978,2]
[337035230,1725355841147,-500.0,0.00024978,2]
[337035231,1725355841156,-400.0,0.00024978,2]
[337035232,1725355841166,-500.0,0.00024978,2]
[337035233,1725355841176,-500.0,0.00024978,2]
[337035234,1725355841186,-500.0,0.00024978,2]
[337035235,1725355841197,-500.0,0.00024978,2]
[337035236,1725355841206,-500.0,0.00024978,2]
[337035237,1725355841219,-500.0,0.00024978,2]
[337035238,1725355841229,-326.25191149,0.00024978,2]
[337035239,1725355841238,-500.0,0.00024978,2]
[337035240,1725355841247,-500.0,0.00024978,2]
[337035241,1725355841258,-500.0,0.00024978,2]
[337035242,1725355841269,-500.0,0.00024978,2]
[337035243,1725355841279,-500.0,0.00024978,2]
[337035244,1725355841289,-500.0,0.00024978,2]
[337035245,1725355841300,-161.642335,0.00024979,7]
[337035246,1725355841310,-151.0,0.00024979,7]
[337035247,1725355841319,-280525.39518548,0.00024979,3]
[337035250,1725355843213,-151.0,0.00024978,7]
[337035251,1725355843224,-201.09512226,0.00024979,3]
[337035252,1725355843267,-130.87818101,0.00024979,3]
[337035253,1725355843278,-31162.93630225,0.00024979,3]
[337035254,1725355843289,-151.0,0.0002498,2]
[337035255,1725355843301,-153.24606,0.0002498,7]
[337035256,1725355843312,-151.0,0.0002498,7]
[337035257,1725355843322,-151.0,0.0002498,7]
[337035258,1725355843331,-151.0,0.0002498,7]
[337035259,1725355843340,-151.0,0.0002498,7]
[337035260,1725355843350,-151.0,0.0002498,7]
[337035261,1725355843360,-2578.89826565,0.0002498,3]
[337035265,1725355952639,10000.0,0.000201,10]
[337035266,1725355968065,1832.84,0.000201,10]
[337035313,1725357038417,-180.726279,0.00023448,2]
[337035314,1725357038426,-300.0,0.00023849,2]
[337035315,1725357038435,-300.0,0.00023849,2]
[337035316,1725357038444,-15439.75350761,0.0002385,2]
[337035317,1725357038473,-3800.56866409,0.0002385,2]
[337035318,1725357038482,-7606.5936264,0.00024148,2]
[337035319,1725357038491,-604.54923298,0.00024855,6]
[337035320,1725357038500,-1572.29992098,0.00024898,2]
[337035321,1725357038510,-11137.63,0.0002497,3]
[337035322,1725357038519,-9281.35,0.0002497,3]
[337035323,1725357038528,-500.0,0.00024973,2]
[337035324,1725357038537,-161.07763022,0.00024973,2]
[337035325,1725357038546,-167.18037718,0.00024973,2]
[337035326,1725357038555,-200.11197143,0.00024973,2]
[337035327,1725357038565,-158.58904711,0.00024973,2]
[337035328,1725357038574,-152.812093,0.00024978,7]
[337035329,1725357038584,-153.96298892,0.00024979,2]
[337035330,1725357038598,-2472.39283388,0.00024979,2]
[337035331,1725357038608,-500.0,0.00024979,2]
[337035332,1725357038619,-500.0,0.00024979,2]
[337035333,1725357038633,-193.0490761,0.00024979,2]
[337035334,1725357038646,-500.0,0.00024979,2]
[337035335,1725357038657,-500.0,0.00024979,2]
[337035336,1725357038669,-500.0,0.00024979,2]
[337035337,1725357038679,-500.0,0.00024979,2]
[337035338,1725357038688,-500.0,0.00024979,2]
[337035339,1725357038697,-500.0,0.00024979,2]
[337035340,1725357038706,-500.0,0.00024979,2]
[337035341,1725357038715,-572.96413153,0.00024979,2]
[337035342,1725357038724,-500.0,0.00024979,2]
[337035343,1725357038734,-500.0,0.00024979,2]
[337035344,1725357038744,-500.0,0.00024979,2]
[337035345,1725357038754,-619.75269054,0.00024979,2]
[337035346,1725357038763,-500.0,0.00024979,2]
[337035347,1725357038774,-500.0,0.00024979,2]
[337035348,1725357038783,-501.52188027,0.00024979,2]
[337035349,1725357038793,-500.0,0.00024979,2]
[337035350,1725357038802,-500.0,0.00024979,2]
[337035351,1725357038811,-389.88357099,0.00024979,2]
[337035352,1725357038821,-311240.1379674,0.0002498,3]
[337035363,1725357043381,-2145.60684808,0.0002497,3]
[337035393,1725357117736,2000.0,0.00023,15]
[337035406,1725358021473,155.61698923,0.0002,9]
[337035407,1725358169116,-176.0,0.00022,2]
[337035408,1725358169138,-302.24446742,0.00022,2]
[337035409,1725358169159,-302.24446742,0.0002222,2]
[337035410,1725358169181,-302.24446742,0.0002244,2]
[337035411,1725358204930,161.001243,0.00021711,2]
[337035453,1725358238708,-302.24446742,0.0002266,2]
[337035455,1725358238718,-161.001243,0.00022854,2]
[337035457,1725358238727,-302.24446742,0.0002288,2]
[337035458,1725358238737,-300.0,0.00022999,2]
[337035460,1725358238746,-24189.87832516,0.00023,2]
[337035462,1725358238756,-593.08723933,0.000231,4]
[337035464,1725358238766,-161.001243,0.00023997,2]
[337035465,1725358238775,-1954.056269,0.000242,12]
[337035466,1725358238785,-153.0,0.00024438,2]
[337035467,1725358238794,-1415.0699289,0.00024873,2]
[337035468,1725358238803,-10780.03,0.00024951,3]
[337035469,1725358238813,-8983.35,0.00024951,3]
[337035470,1725358238822,-7486.13,0.00024951,3]
[337035471,1725358238831,-193.0490761,0.00024959,2]
[337035472,1725358238840,-500.0,0.00024959,2]
[337035473,1725358238849,-500.0,0.00024959,2]
[337035474,1725358238858,-418.96405826,0.00024959,2]
[337035475,1725358238867,-500.0,0.00024959,2]
[337035476,1725358238877,-500.0,0.00024959,2]
[337035477,1725358238886,-500.0,0.00024959,2]
[337035478,1725358238895,-500.0,0.00024959,2]
[337035479,1725358238904,-500.0,0.00024959,2]
[337035480,1725358238914,-500.0,0.00024959,2]
[337035481,1725358238923,-500.0,0.00024959,2]
[337035482,1725358238932,-501.52188027,0.00024959,2]
[337035483,1725358238942,-500.0,0.00024959,2]
[337035484,1725358238951,-500.0,0.00024959,2]
[337035485,1725358238960,-389.88357099,0.00024959,2]
[337035486,1725358238970,-500.0,0.00024959,2]
[337035487,1725358238979,-619.75269054,0.00024959,2]
[337035488,1725358238989,-572.96413153,0.00024959,2]
[337035489,1725358238999,-280425.18766765,0.0002496,3]
[337035490,1725358239014,-46000.0,0.0002496,3]
[337035504,1725358240672,-97924.98817111,0.0002496,3]
[337035557,1725359200253,-165.56977423,0.0002387,2]
[337035560,1725359298486,16488.61267118,0.0002,2]
[337035564,1725359321286,12592.97235622,0.0001999,2]
[337035565,1725359362102,-300.0,0.00020376,2]
[337035566,1725359362126,-300.0,0.00020376,2]
[337035567,1725359362269,-5626.229296,0.00020377,2]
[337035575,1725359432538,-300.0,0.00020376,2]
[337035576,1725359432549,-5510.0,0.00020377,2]
[337035577,1725359432561,-601.76891196,0.00020377,2]
[337035638,1725359438667,-5884.84798012,0.00020377,2]
[337035640,1725359438679,-2567.06427814,0.00020377,2]
[337035642,1725359438691,-28355.05643031,0.00020377,2]
[337035643,1725359438701,-3324.70408057,0.000209,2]
[337035645,1725359438711,-258.92786436,0.00021,2]
[337035646,1725359438722,-10162.88646325,0.00021,2]
[337035647,1725359438732,-233.34365272,0.00021,2]
[337035648,1725359438741,-1134.95277676,0.000219,2]
[337035649,1725359438751,-2071.70003102,0.00022,2]
[337035650,1725359438762,-1011.16813398,0.00022,2]
[337035651,1725359438772,-1316.03006309,0.000223,2]
[337035652,1725359438782,-420.0,0.00022414,2]
[337035653,1725359438794,-1134.95277672,0.00022645,2]
[337035654,1725359438804,-239.94813951,0.00023,2]
[337035655,1725359438813,-11421.21711974,0.00023,2]
[337035656,1725359438823,-1134.95277672,0.0002339,2]
[337035657,1725359438834,-302.54598823,0.00023751,4]
[337035658,1725359438844,-5656.19913767,0.0002387,2]
[337035659,1725359438854,-218.0,0.00023918,2]
[337035660,1725359438866,-187.5,0.00023923,2]
[337035661,1725359438875,-1134.95277672,0.00024134,2]
[337035662,1725359438885,-187.5,0.00024339,2]
[337035663,1725359438895,-153.0,0.000244,2]
[337035664,1725359438904,-363.0,0.00024655,2]
[337035665,1725359438913,-153.0,0.000247,2]
[337035666,1725359438923,-187.5,0.00024754,2]
[337035667,1725359438933,-1565.37599081,0.00024784,2]
[337035668,1725359439027,-153.0,0.000248,2]
[337035669,1725359439037,-153.0,0.000248,2]
[337035670,1725359439046,-1273.56293601,0.00024873,2]
[337035671,1725359439055,-1134.95277672,0.00024879,2]
[337035672,1725359439064,-13236.89,0.00024921,3]
[337035673,1725359439075,-15884.27,0.00024931,3]
[337035674,1725359439084,-324.84,0.00024941,3]
[337035675,1725359439093,-200.0,0.00024959,2]
[337035676,1725359439102,-500.0,0.00024959,2]
[337035677,1725359439112,-500.0,0.00024959,2]
[337035678,1725359439121,-500.0,0.00024959,2]
[337035679,1725359439130,-500.0,0.00024959,2]
[337035680,1725359439140,-301.07489207,0.00024959,2]
[337035681,1725359439149,-500.0,0.00024959,2]
[337035682,1725359439158,-500.0,0.00024959,2]
[337035683,1725359439167,-500.0,0.00024959,2]
[337035684,1725359439177,-500.0,0.00024959,2]
[337035685,1725359439186,-500.0,0.00024959,2]
[337035686,1725359439195,-500.0,0.00024959,2]